fUST/lending_fUST_20250907
["ID","MTS","AMOUNT","RATE_DAILY","PERIOD"]
[384042676,1757239849976,-151.0,0.00013698,2]
[384042678,1757239849985,-400.69404245,0.00013698,2]
[384042680,1757239849997,-151.0,0.00013698,2]
[384042683,1757239850007,-151.0,0.00013698,2]
[384042685,1757239850017,-480.0,0.00013698,2]
[384042686,1757239850026,-151.0,0.00013698,2]
[384042688,1757239850036,-481.11406537,0.00013698,2]
[384042690,1757239850045,-151.0,0.00013698,2]
[384042692,1757239850055,-151.0,0.00013698,2]
[384042694,1757239850065,-151.0,0.00013698,2]
[384042696,1757239850074,-151.0,0.00013698,2]
[384042698,1757239850084,-151.0,0.00013698,2]
[384042700,1757239850094,-151.0,0.00013698,2]
[384042702,1757239850103,-480.0,0.00013698,2]
[384042703,1757239850112,-417.208612,0.00013698,2]
[384042704,1757239850123,-417.208612,0.00013698,2]
[384042705,1757239850133,-480.0,0.00013698,2]
[384042706,1757239850143,-417.208612,0.00013698,2]
[384042707,1757239850152,-417.208612,0.00013698,2]
[384042708,1757239850162,-480.0,0.00013698,2]
[384042709,1757239850171,-417.208612,0.00013698,2]
[384042710,1757239850180,-617.51,0.00013698,2]
[384042711,1757239850190,-417.208612,0.00013698,2]
[384042712,1757239850199,-417.208612,0.00013698,2]
[384042713,1757239850209,-417.208612,0.00013698,2]
[384042714,1757239850218,-417.208612,0.00013698,2]
[384042715,1757239850227,-417.208612,0.00013698,2]
[384042716,1757239850237,-417.208612,0.00013698,2]
[384042717,1757239850246,-417.208612,0.00013698,2]
[384042718,1757239850256,-480.0,0.00013698,2]
[384042719,1757239850265,-417.208612,0.00013698,2]
[384042720,1757239850275,-417.208612,0.00013698,2]
[384042721,1757239850284,-417.208612,0.00013698,2]
[384042722,1757239850294,-417.208612,0.00013698,2]
[384042723,1757239850303,-417.208612,0.00013698,2]
[384042724,1757239850312,-417.208612,0.00013698,2]
[384042725,1757239850321,-788.19,0.00013698,2]
[384042726,1757239850331,-1457.76,0.00013698,2]
[384042727,1757239850343,-480.0,0.00013698,2]
[384042728,1757239850352,-417.208612,0.00013698,2]
[384042729,1757239850361,-417.208619,0.00013698,2]
[384042730,1757239850370,-536.4,0.00013698,2]
[384042731,1757239850380,-480.83753717,0.00013698,2]
[384042732,1757239850389,-480.0,0.00013698,2]
[384042733,1757239850398,-480.0,0.00013698,2]
[384042734,1757239850407,-480.0,0.00013698,2]
[384042735,1757239850416,-480.0,0.00013698,2]
[384042736,1757239850426,-3985.12,0.00013698,2]
[384042737,1757239850436,-480.0,0.00013698,2]
[384042738,1757239850445,-480.0,0.00013698,2]
[384042739,1757239850455,-480.0,0.00013698,2]
[384042741,1757239850464,-536.72782606,0.00013698,2]
[384042743,1757239850473,-1153.38,0.00013698,2]
[384042744,1757239850482,-671.99,0.00013698,2]
[384042746,1757239850491,-480.0,0.00013698,2]
[384042748,1757239850500,-2818.66,0.00013698,2]
[384042750,1757239850509,-515.69,0.00013698,2]
[384042752,1757239850518,-920.08,0.00013698,2]
[384042754,1757239850528,-3342.03,0.00013698,2]
[384042756,1757239850538,-480.0,0.00013698,2]
[384042758,1757239850548,-484.03347476,0.00013698,2]
[384042759,1757239850557,-484.21622238,0.00013698,2]
[384042760,1757239850567,-730.97,0.00013698,2]
[384042761,1757239850576,-480.0,0.00013698,2]
[384042762,1757239850585,-480.0,0.00013698,2]
[384042763,1757239850595,-480.0,0.00013698,2]
[384042764,1757239850605,-480.0,0.00013698,2]
[384042765,1757239850614,-151.0,0.00013698,2]
[384042766,1757239850623,-151.0,0.00013698,2]
[384042767,1757239850632,-151.0,0.00013698,2]
[384042768,1757239850642,-151.0,0.00013698,2]
[384042769,1757239850651,-480.0,0.00013698,2]
[384042770,1757239850661,-157.0,0.00013698,2]
[384042771,1757239850670,-480.0,0.00013698,2]
[384042772,1757239850679,-823.15,0.00013698,2]
[384042773,1757239850688,-181.67260504,0.00013698,2]
[384042774,1757239850697,-480.0,0.00013698,2]
[384042775,1757239850707,-3276.58,0.00013698,2]
[384042776,1757239850717,-2134.0,0.00013698,2]
[384042777,1757239850726,-157.0,0.00013698,2]
[384042778,1757239850735,-157.0,0.00013698,2]
[384042779,1757239850745,-157.0,0.00013698,2]
[384042780,1757239850754,-480.0,0.00013698,2]
[384042781,1757239850763,-628.0,0.00013698,2]
[384042782,1757239850773,-480.0,0.00013698,2]
[384042783,1757239850782,-480.0,0.00013698,2]
[384042784,1757239850791,-480.0,0.00013698,2]
[384042785,1757239850801,-480.0,0.00013698,2]
[384042786,1757239850810,-520.43,0.00013698,2]
[384042787,1757239850820,-480.0,0.00013698,2]
[384042788,1757239850829,-480.0,0.00013698,2]
[384042789,1757239850838,-5520.96,0.00013698,2]
[384042790,1757239850848,-2302.3,0.00013698,2]
[384042791,1757239850857,-480.0,0.00013698,2]
[384042792,1757239850866,-480.0,0.00013698,2]
[384042793,1757239850875,-480.0,0.00013698,2]
[384042794,1757239850885,-867.44,0.00013698,2]
[384042795,1757239850895,-480.0,0.00013698,2]
[384042796,1757239850904,-480.0,0.00013698,2]
[384042797,1757239850914,-480.0,0.00013698,2]
[384042798,1757239850923,-480.0,0.00013698,2]
[384042799,1757239850933,-480.0,0.00013698,2]
[384042800,1757239850942,-2464.79,0.00013698,2]
[384042801,1757239850951,-1266.01,0.00013698,2]
[384042802,1757239850960,-480.0,0.00013698,2]
[384042803,1757239850970,-2391.04,0.00013698,2]
[384042804,1757239850979,-1650.04,0.00013698,2]
[384042805,1757239850989,-486.38592804,0.00013698,2]
[384042806,1757239850998,-830.56,0.00013698,2]
[384042807,1757239851008,-793.48,0.00013698,2]
[384042808,1757239851018,-151.0,0.00013698,2]
[384042809,1757239851028,-480.0,0.00013698,2]
[384042810,1757239851037,-151.0,0.00013698,2]
[384042811,1757239851048,-151.0,0.00013698,2]
[384042812,1757239851057,-480.0,0.00013698,2]
[384042813,1757239851067,-480.0,0.00013698,2]
[384042814,1757239851076,-172.59349729,0.00013698,2]
[384042815,1757239851086,-480.0,0.00013698,2]
[384042816,1757239851095,-480.0,0.00013698,2]
[384042817,1757239851104,-480.88189864,0.00013698,2]
[384042818,1757239851113,-904.76,0.00013698,2]
[384042819,1757239851123,-480.0,0.00013698,2]
[384042820,1757239851133,-881.07,0.00013698,2]
[384042821,1757239851142,-480.0,0.00013698,2]
[384042822,1757239851152,-617.48,0.00013698,2]
[384042823,1757239851161,-639.11,0.00013698,2]
[384042824,1757239851170,-480.0,0.00013698,2]
[384042825,1757239851271,-2602.43,0.00013698,2]
[384042826,1757239851281,-230.059902,0.00013698,2]
[384042827,1757239851290,-230.059902,0.00013698,2]
[384042828,1757239851300,-230.059902,0.00013698,2]
[384042829,1757239851309,-230.059902,0.00013698,2]
[384042830,1757239851318,-230.059902,0.00013698,2]
[384042831,1757239851328,-230.059902,0.00013698,2]
[384042832,1757239851337,-230.059902,0.00013698,2]
[384042833,1757239851347,-230.059902,0.00013698,2]
[384042834,1757239851357,-480.0,0.00013698,2]
[384042835,1757239851367,-230.059902,0.00013698,2]
[384042836,1757239851377,-230.059902,0.00013698,2]
[384042837,1757239851386,-230.059902,0.00013698,2]
[384042838,1757239851396,-25830.74,0.00013698,2]
[384042839,1757239851405,-230.059902,0.00013698,2]
[384042840,1757239851415,-1113.1725,0.00013698,2]
[384042841,1757239851424,-230.059902,0.00013698,2]
[384042842,1757239851433,-1113.1725,0.00013698,2]
[384042843,1757239851442,-230.059902,0.00013698,2]
[384042844,1757239851451,-1113.1725,0.00013698,2]
[384042845,1757239851461,-230.059902,0.00013698,2]
[384042846,1757239851470,-1113.1725,0.00013698,2]
[384042847,1757239851480,-230.059902,0.00013698,2]
[384042848,1757239851489,-1113.1725,0.00013698,2]
[384042849,1757239851498,-230.059902,0.00013698,2]
[384042850,1757239851507,-1113.1725,0.00013698,2]
[384042851,1757239851516,-230.059902,0.00013698,2]
[384042852,1757239851526,-1113.1725,0.00013698,2]
[384042853,1757239851535,-230.059902,0.00013698,2]
[384042854,1757239851545,-1113.1725,0.00013698,2]
[384042855,1757239851555,-480.0,0.00013698,2]
[384042856,1757239851564,-230.0599,0.00013698,2]
[384042857,1757239851573,-1113.1725,0.00013698,2]
[384042858,1757239851583,-480.0,0.00013698,2]
[384042859,1757239851592,-1113.1725,0.00013698,2]
[384042860,1757239851601,-619.6,0.00013698,2]
[384042861,1757239851611,-1113.1725,0.00013698,2]
[384042862,1757239851620,-1113.1725,0.00013698,2]
[384042863,1757239851629,-1113.1725,0.00013698,2]
[384042864,1757239851638,-1113.1725,0.00013698,2]
[384042865,1757239851647,-1113.1725,0.00013698,2]
[384042866,1757239851657,-1113.1725,0.00013698,2]
[384042867,1757239851666,-1113.1725,0.00013698,2]
[384042868,1757239851675,-1113.1725,0.00013698,2]
[384042869,1757239851685,-1113.1725,0.00013698,2]
[384042870,1757239851694,-1113.17250776,0.00013698,2]
[384042871,1757239851703,-151.0,0.00013698,2]
[384042872,1757239851713,-151.0,0.00013698,2]
[384042873,1757239851722,-480.0,0.00013698,2]
[384042874,1757239851731,-700.96,0.00013698,2]
[384042875,1757239851741,-480.0,0.00013698,2]
[384042876,1757239851751,-242.50109359,0.00013698,2]
[384042877,1757239851759,-151.0,0.00013698,2]
[384042878,1757239851769,-500.0,0.00013698,2]
[384042879,1757239851778,-1006.601939,0.00013699,2]
[384042880,1757239851788,-151.0,0.00013699,2]
[384042881,1757239851797,-151.0,0.00013699,2]
[384042882,1757239851806,-151.0,0.00013699,2]
[384042883,1757239851815,-151.0,0.00013699,2]
[384042884,1757239851824,-151.0,0.00013699,2]
[384042885,1757239851834,-151.0,0.00013699,2]
[384042886,1757239851843,-151.0,0.00013699,2]
[384042887,1757239851853,-151.0,0.00013699,2]
[384042888,1757239851862,-151.0,0.00013699,2]
[384042889,1757239851872,-151.0,0.00013699,2]
[384042890,1757239851881,-151.0,0.00013699,2]
[384042891,1757239851891,-151.0,0.00013699,2]
[384042892,1757239851901,-196.955848,0.00013699,2]
[384042893,1757239851910,-151.0,0.00013699,2]
[384042894,1757239851919,-151.0,0.00013699,2]
[384042895,1757239851929,-151.0,0.00013699,2]
[384042896,1757239851941,-151.0,0.00013699,2]
[384042897,1757239851951,-151.0,0.00013699,2]
[384042898,1757239851961,-151.0,0.00013699,2]
[384042899,1757239851970,-151.0,0.00013699,2]
[384042900,1757239851980,-151.0,0.00013699,2]
[384042901,1757239851989,-151.0,0.00013699,2]
[384042902,1757239851998,-151.0,0.00013699,2]
[384042903,1757239852009,-151.0,0.00013699,2]
[384042904,1757239852019,-151.0,0.00013699,2]
[384042905,1757239852029,-151.0,0.00013699,2]
[384042906,1757239852038,-151.0,0.00013699,2]
[384042907,1757239852048,-151.0,0.00013699,2]
[384042908,1757239852057,-282.612151,0.00013699,2]
[384042909,1757239852067,-151.0,0.00013699,2]
[384042910,1757239852077,-151.0,0.00013699,2]
[384042911,1757239852086,-153.551946,0.00013699,2]
[384042912,1757239852095,-1000.0,0.00013699,2]
[384042913,1757239852105,-1000.0,0.00013699,2]
[384042914,1757239852114,-1000.0,0.00013699,2]
[384042915,1757239852123,-1000.0,0.00013699,2]
[384042916,1757239852133,-1000.0,0.00013699,2]
[384042917,1757239852142,-1000.0,0.00013699,2]
[384042918,1757239852151,-1000.0,0.00013699,2]
[384042919,1757239852160,-1000.0,0.00013699,2]
[384042920,1757239852170,-1000.0,0.00013699,2]
[384042921,1757239852179,-1000.0,0.00013699,2]
[384042922,1757239852188,-1000.0,0.00013699,2]
[384042923,1757239852197,-1000.0,0.00013699,2]
[384042924,1757239852207,-1000.0,0.00013699,2]
[384042925,1757239852216,-1000.0,0.00013699,2]
[384042926,1757239852225,-1000.0,0.00013699,2]
[384042927,1757239852235,-1000.0,0.00013699,2]
[384042928,1757239852244,-230.115261,0.00013699,2]
[384042929,1757239852254,-324.976453,0.00013699,2]
[384042930,1757239852263,-224.601,0.00013701,2]
[384042931,1757239852272,-250.0,0.00013701,2]
[384042932,1757239852282,-249.1,0.00013701,2]
[384042933,1757239852291,-250.77,0.00013701,2]
[384042934,1757239852300,-262.193,0.00013701,2]
[384042935,1757239852310,-221.463,0.00013701,2]
[384042936,1757239852319,-976.0,0.00013701,2]
[384042937,1757239852327,-2154.0,0.00013701,2]
[384042938,1757239852337,-634.0,0.00013701,2]
[384042939,1757239852345,-486.94268742,0.00013732,2]
[384042940,1757239852354,-295.3355136,0.000138,2]
[384042941,1757239852364,-153.0,0.000138,2]
[384042942,1757239852373,-388.5765985,0.000138,2]
[384042943,1757239852382,-161.5995788,0.000138,2]
[384042944,1757239852392,-295.3355136,0.000138,2]
[384042945,1757239852401,-210.9258022,0.000138,2]
[384042946,1757239852410,-161.5995788,0.000138,2]
[384042947,1757239852419,-153.0,0.000138,2]
[384042948,1757239852428,-583.62212552,0.00013872,2]
[384042949,1757239852439,-1000.0,0.000139,2]
[384042950,1757239852448,-151.0,0.000139,2]
[384042951,1757239852457,-2025.28,0.00013908,2]
[384042952,1757239852466,-300.0,0.0001391,2]
[384042953,1757239852475,-300.0,0.0001391,2]
[384042954,1757239852484,-300.0,0.0001391,2]
[384042955,1757239852493,-300.0,0.0001391,2]
[384042956,1757239852504,-300.0,0.0001391,2]
[384042957,1757239852513,-300.0,0.0001391,2]
[384042958,1757239852523,-300.0,0.0001391,2]
[384042959,1757239852532,-300.0,0.0001391,2]
[384042960,1757239852542,-300.0,0.0001391,2]
[384042961,1757239852551,-300.0,0.0001391,2]
[384042962,1757239852560,-300.0,0.0001391,2]
[384042963,1757239852571,-300.0,0.0001391,2]
[384042964,1757239852582,-300.0,0.0001391,2]
[384042965,1757239852592,-300.0,0.0001391,2]
[384042966,1757239852601,-300.0,0.0001391,2]
[384042967,1757239852611,-203.48814498,0.00013969,2]
[384042968,1757239852621,-3622.2574694,0.0001397,2]
[384042969,1757239852631,-149184.31677184,0.0001397,2]
[384042982,1757239924045,1000.0,0.00018595,20]
[384042983,1757239947516,365.790991,0.00027397,120]
[384042984,1757240065329,1792.9466708,0.00013158,2]
[384042990,1757240088542,1792.9466708,0.00013158,2]
[384042991,1757240112372,1792.9466708,0.00013158,2]
[384042992,1757240135949,1792.9466708,0.00013158,2]
[384042993,1757240159764,1792.9466708,0.00013158,2]
[384042994,1757240184999,1792.9466708,0.00013158,2]
[384042995,1757240209301,1792.9466708,0.00013158,2]
[384042996,1757240232319,1792.9466708,0.00013158,2]
[384043000,1757240458090,300.0,0.00013061,2]
[384043001,1757240481998,300.0,0.00013061,2]
[384043002,1757240505644,300.0,0.00013061,2]
[384043003,1757240528675,300.0,0.00013061,2]
[384043004,1757240551031,300.0,0.00013061,2]
[384043005,1757240573725,300.0,0.00013061,2]
[384043006,1757240596671,300.0,0.00013061,2]
[384043007,1757240630042,300.0,0.00013061,2]
[384043008,1757240644471,604.0,0.00029015,60]
[384043023,1757240974766,407.41800186,0.00013095,2]
[384043049,1757241032523,-300.0,0.0001346,2]
[384043050,1757241032534,-300.0,0.00013499,2]
[384043051,1757241032544,-19220.36187487,0.000135,2]
[384043053,1757241032556,-4410.20799884,0.000135,2]
[384043054,1757241032568,-4549.45951805,0.000135,2]
[384043055,1757241032585,-938.09,0.000135,2]
[384043073,1757241038460,-13609.3064238,0.000135,2]
[384043074,1757241038472,-4486.9999999,0.000135,2]
[384043075,1757241038493,-8926.71329277,0.000135,2]
[384043076,1757241038503,-225.74118173,0.00013597,2]
[384043077,1757241038513,-500.0,0.00013597,2]
[384043078,1757241038522,-500.0,0.00013597,2]
[384043079,1757241038533,-500.0,0.00013597,2]
[384043080,1757241038542,-500.0,0.00013597,2]
[384043081,1757241038552,-500.0,0.00013597,2]
[384043082,1757241038562,-500.0,0.00013597,2]
[384043083,1757241038571,-465.78915525,0.00013597,2]
[384043084,1757241038580,-500.0,0.00013597,2]
[384043085,1757241038590,-500.0,0.00013597,2]
[384043086,1757241038599,-500.0,0.00013597,2]
[384043087,1757241038609,-500.0,0.00013597,2]
[384043088,1757241038619,-500.0,0.00013597,2]
[384043089,1757241038628,-500.0,0.00013597,2]
[384043090,1757241038638,-500.0,0.00013597,2]
[384043091,1757241038647,-500.0,0.00013597,2]
[384043092,1757241038656,-500.0,0.00013597,2]
[384043093,1757241038666,-413.46503998,0.00013597,2]
[384043094,1757241038675,-402.96286119,0.00013598,2]
[384043095,1757241038684,-87007.54860626,0.00013598,2]
[384043096,1757241038695,-1824.95003109,0.00013598,2]
[384043097,1757241038707,-430.67237341,0.00013598,2]
[384043098,1757241038718,-435.51075284,0.00013598,2]
[384043099,1757241038729,-1029.90528088,0.00013598,2]
[384043116,1757241040596,-963.78106228,0.00013365,2]
[384043118,1757241040608,-229.16560852,0.00013365,2]
[384043120,1757241040617,-3470.2955433,0.00013598,2]
[384043125,1757241040650,-12937.99213512,0.00013598,2]
[384043165,1757241042254,-0.02712519,0.00013598,2]
[384043166,1757241042266,-429.42624312,0.00013598,2]
[384043167,1757241042280,-10171.19987005,0.00013598,2]
[384043168,1757241042289,-250.65364145,0.00013631,2]
[384043169,1757241042299,-195.63280249,0.00013698,2]
[384043170,1757241042309,-480.0,0.00013698,2]
[384043171,1757241042319,-480.0,0.00013698,2]
[384043172,1757241042330,-480.0,0.00013698,2]
[384043173,1757241042340,-480.0,0.00013698,2]
[384043174,1757241042350,-328.08328819,0.00013698,2]
[384043175,1757241042360,-481.23573899,0.00013698,2]
[384043176,1757241042370,-483.21433566,0.00013698,2]
[384043177,1757241042380,-239.64473235,0.00013698,2]
[384043178,1757241042390,-728.39,0.00013698,2]
[384043179,1757241042401,-480.0,0.00013698,2]
[384043180,1757241042414,-480.0,0.00013698,2]
[384043181,1757241042423,-480.0,0.00013698,2]
[384043182,1757241042434,-480.0,0.00013698,2]
[384043183,1757241042443,-480.0,0.00013698,2]
[384043184,1757241042454,-480.0,0.00013698,2]
[384043185,1757241042463,-480.0,0.00013698,2]
[384043186,1757241042473,-480.0,0.00013698,2]
[384043187,1757241042483,-480.0,0.00013698,2]
[384043188,1757241042495,-480.0,0.00013698,2]
[384043189,1757241042504,-480.0,0.00013698,2]
[384043190,1757241042514,-496.19970774,0.00013698,2]
[384043191,1757241042525,-480.0,0.00013698,2]
[384043192,1757241042648,-491.29,0.00013698,2]
[384043193,1757241042662,-480.0,0.00013698,2]
[384043194,1757241042671,-480.0,0.00013698,2]
[384043195,1757241042681,-480.0,0.00013698,2]
[384043196,1757241042690,-480.0,0.00013698,2]
[384043197,1757241042700,-480.0,0.00013698,2]
[384043198,1757241042709,-480.0,0.00013698,2]
[384043199,1757241042719,-480.0,0.00013698,2]
[384043200,1757241042730,-195.80351761,0.00013698,2]
[384043201,1757241042744,-284.19648239,0.00013698,2]
[384043202,1757241042754,-516.35,0.00013698,2]
[384043203,1757241042764,-480.0,0.00013698,2]
[384043204,1757241042773,-480.0,0.00013698,2]
[384043205,1757241042783,-480.0,0.00013698,2]
[384043206,1757241042792,-480.0,0.00013698,2]
[384043207,1757241042802,-447.34419956,0.00013698,2]
[384043208,1757241042816,-32.65580044,0.00013698,2]
[384043209,1757241042826,-486.09,0.00013698,2]
[384043210,1757241042835,-625.73,0.00013698,2]
[384043211,1757241042844,-480.0,0.00013698,2]
[384043212,1757241042853,-499.04,0.00013698,2]
[384043213,1757241042863,-482.12956124,0.00013698,2]
[384043214,1757241042872,-300.330684,0.00013698,2]
[384043215,1757241042882,-480.0,0.00013698,2]
[384043216,1757241042891,-480.0,0.00013698,2]
[384043217,1757241042901,-480.0,0.00013698,2]
[384043218,1757241042911,-480.0,0.00013698,2]
[384043219,1757241042920,-480.0,0.00013698,2]
[384043220,1757241042929,-480.0,0.00013698,2]
[384043221,1757241042938,-480.0,0.00013698,2]
[384043222,1757241042947,-480.0,0.00013698,2]
[384043223,1757241042956,-249.32492461,0.00013698,2]
[384043224,1757241042966,-611.10177463,0.00013698,2]
[384043226,1757241042976,-480.0,0.00013698,2]
[384043228,1757241042985,-480.0,0.00013698,2]
[384043229,1757241042995,-480.0,0.00013698,2]
[384043230,1757241043005,-473.67397397,0.00013698,2]
[384043231,1757241043015,-480.0,0.00013698,2]
[384043232,1757241043024,-480.0,0.00013698,2]
[384043233,1757241043034,-601.61,0.00013698,2]
[384043234,1757241043044,-480.0,0.00013698,2]
[384043235,1757241043053,-489.86,0.00013698,2]
[384043236,1757241043062,-480.0,0.00013698,2]
[384043237,1757241043072,-792.73,0.00013698,2]
[384043238,1757241043081,-480.0,0.00013698,2]
[384043239,1757241043092,-480.0,0.00013698,2]
[384043240,1757241043101,-480.0,0.00013698,2]
[384043242,1757241043110,-480.0,0.00013698,2]
[384043243,1757241043120,-480.0,0.00013698,2]
[384043244,1757241043129,-480.0,0.00013698,2]
[384043245,1757241043138,-616.41,0.00013698,2]
[384043246,1757241043148,-708.08,0.00013698,2]
[384043247,1757241043158,-480.0,0.00013698,2]
[384043248,1757241043167,-483.28587927,0.00013698,2]
[384043249,1757241043177,-480.0,0.00013698,2]
[384043250,1757241043187,-480.0,0.00013698,2]
[384043252,1757241043196,-480.0,0.00013698,2]
[384043254,1757241043206,-480.0,0.00013698,2]
[384043255,1757241043215,-480.0,0.00013698,2]
[384043256,1757241043225,-514.2,0.00013698,2]
[384043257,1757241043235,-480.0,0.00013698,2]
[384043258,1757241043244,-480.0,0.00013698,2]
[384043259,1757241043254,-480.0,0.00013698,2]
[384043260,1757241043264,-480.0,0.00013698,2]
[384043261,1757241043273,-480.0,0.00013698,2]
[384043262,1757241043283,-480.0,0.00013698,2]
[384043263,1757241043293,-482.11373621,0.00013698,2]
[384043264,1757241043302,-480.0,0.00013698,2]
[384043265,1757241043312,-270.416,0.00013698,2]
[384043266,1757241043321,-480.0,0.00013698,2]
[384043267,1757241043331,-919.53,0.00013698,2]
[384043268,1757241043341,-480.0,0.00013698,2]
[384043269,1757241043351,-298.39019513,0.00013698,2]
[384043270,1757241043361,-480.0,0.00013698,2]
[384043271,1757241043371,-480.0,0.00013698,2]
[384043272,1757241043380,-480.0,0.00013698,2]
[384043273,1757241043390,-599.58,0.00013698,2]
[384043274,1757241043400,-480.0,0.00013698,2]
[384043275,1757241043413,-480.0,0.00013698,2]
[384043276,1757241043422,-416.91752117,0.00013698,2]
[384043277,1757241043432,-416.56421828,0.00013698,2]
[384043278,1757241043442,-480.0,0.00013698,2]
[384043279,1757241043451,-480.0,0.00013698,2]
[384043280,1757241043461,-480.0,0.00013698,2]
[384043281,1757241043471,-480.0,0.00013698,2]
[384043282,1757241043482,-480.0,0.00013698,2]
[384043283,1757241043491,-480.0,0.00013698,2]
[384043284,1757241043501,-480.0,0.00013698,2]
[384043285,1757241043511,-507.81661062,0.00013698,2]
[384043286,1757241043521,-480.0,0.00013698,2]
[384043287,1757241043531,-386.81890461,0.00013698,2]
[384043289,1757241043806,-93.18109539,0.00013698,2]
[384043290,1757241043816,-480.0,0.00013698,2]
[384043291,1757241043826,-480.0,0.00013698,2]
[384043292,1757241043836,-480.0,0.00013698,2]
[384043293,1757241043846,-940.46,0.00013698,2]
[384043294,1757241043855,-201.78179242,0.00013698,2]
[384043295,1757241043867,-278.21820758,0.00013698,2]
[384043296,1757241043876,-480.0,0.00013698,2]
[384043297,1757241043886,-689.86,0.00013698,2]
[384043298,1757241043896,-926.47,0.00013698,2]
[384043299,1757241043905,-480.0,0.00013698,2]
[384043300,1757241043915,-483.73364546,0.00013698,2]
[384043301,1757241043926,-480.0,0.00013698,2]
[384043302,1757241043935,-753.59,0.00013698,2]
[384043303,1757241043944,-261.88966626,0.00013698,2]
[384043304,1757241043954,-480.0,0.00013698,2]
[384043305,1757241043963,-521.01,0.00013698,2]
[384043306,1757241043973,-480.0,0.00013698,2]
[384043307,1757241043983,-480.0,0.00013698,2]
[384043308,1757241043993,-551.99553795,0.00013698,2]
[384043309,1757241044002,-480.0,0.00013698,2]
[384043310,1757241044012,-480.0,0.00013698,2]
[384043311,1757241044021,-480.0,0.00013698,2]
[384043312,1757241044031,-489.80992069,0.00013698,2]
[384043313,1757241044041,-929.36,0.00013698,2]
[384043314,1757241044051,-889.85,0.00013698,2]
[384043315,1757241044060,-389.47756286,0.00013698,2]
[384043316,1757241044069,-489.6346626,0.00013698,2]
[384043317,1757241044079,-286.38396166,0.00013698,2]
[384043318,1757241044096,-195.87497299,0.00013698,2]
[384043319,1757241044105,-461.8809273,0.00013698,2]
[384043320,1757241044146,-18.1190727,0.00013698,2]
[384043321,1757241044156,-546.9,0.00013698,2]
[384043322,1757241044166,-480.0,0.00013698,2]
[384043323,1757241044176,-157.0,0.00013698,2]
[384043324,1757241044185,-157.0,0.00013698,2]
[384043325,1757241044195,-157.0,0.00013698,2]
[384043326,1757241044204,-480.0,0.00013698,2]
[384043327,1757241044214,-480.0,0.00013698,2]
[384043328,1757241044224,-157.0,0.00013698,2]
[384043329,1757241044233,-480.0,0.00013698,2]
[384043330,1757241044243,-480.0,0.00013698,2]
[384043331,1757241044252,-480.61676135,0.00013698,2]
[384043332,1757241044262,-480.0,0.00013698,2]
[384043333,1757241044271,-480.0,0.00013698,2]
[384043334,1757241044281,-1040.85,0.00013698,2]
[384043335,1757241044291,-480.0,0.00013698,2]
[384043336,1757241044301,-480.0,0.00013698,2]
[384043337,1757241044310,-490.12074521,0.00013698,2]
[384043339,1757241044319,-480.0,0.00013698,2]
[384043341,1757241044328,-306.22,0.00013698,2]
[384043343,1757241044338,-480.0,0.00013698,2]
[384043344,1757241044347,-480.0,0.00013698,2]